bitfinex/quotes_ETHUSD_20250622
["timestamp","ask_amount","ask_price","bid_price","bid_amount"]
[1750620367630,0.0608,2184.6,2184.2,4.57831328]
[1750620367926,7.739,2185.0,2184.5,4.5776082]
[1750620368130,7.7998,2185.0,2184.5,4.6081082]
[1750620368329,7.739,2185.0,2184.5,0.0305]
[1750620368530,0.0608,2184.9,2184.5,0.0305]
[1750620369621,0.0608,2184.9,2184.4,5.33039712]
[1750620369622,0.0608,2184.9,2184.4,0.7831]
[1750620370105,0.0608,2184.8,2184.1,0.7526]
[1750620370304,0.0608,2184.8,2184.1,5.3310286]
[1750620370704,0.0608,2184.8,2184.2,4.57830366]
[1750620370910,0.0608,2184.8,2184.3,4.57812138]
[1750620371107,0.0608,2184.8,2184.3,4.60862138]
[1750620371312,10.0,2184.9,2184.3,0.0305]
[1750620371524,0.0608,2184.7,2184.3,0.0305]
[1750620372235,0.0608,2184.7,2184.3,4.64672321]
[1750620372729,2.091,2185.2,2184.3,4.64672321]
[1750620372730,0.44826321,2185.5,2184.9,4.57675044]
[1750620372930,0.0608,2185.7,2185.1,4.57629763]
[1750620373134,0.0608,2185.7,2185.0,4.60709985]
[1750620373135,0.18655559,2185.6,2185.0,4.60709985]
[1750620373339,10.0608,2185.7,2185.0,4.60709985]
[1750620373502,10.0608,2185.7,2185.0,0.0305]
[1750620373503,0.05719637,2185.6,2185.0,0.0305]
[1750620373902,14.94777399,2185.6,2184.7,4.57717702]
[1750620374134,0.0608,2185.2,2184.6,0.8465]
[1750620374343,14.89057762,2185.0,2184.5,10.0]
[1750620374516,0.0608,2184.9,2184.4,0.816]
[1750620374714,0.11801211,2184.9,2184.3,6.66907256]
[1750620375032,0.11801211,2184.9,2184.3,2.091]
[1750620375434,0.11801211,2184.9,2183.9,2.091]
[1750620375435,14.95137762,2184.7,2183.9,2.091]
[1750620375744,14.95137762,2184.7,2184.1,10.0]
[1750620376108,14.95137762,2184.7,2184.1,14.5785365]
[1750620376639,14.95137762,2185.0,2184.3,0.816]
[1750620376942,7.98471174,2184.9,2184.4,0.09731567]
[1750620377234,0.24771174,2184.8,2184.4,0.03811567]
[1750620377409,0.24771174,2184.7,2184.1,5.39445638]
[1750620377611,0.18691174,2184.6,2184.1,5.39445638]
[1750620377819,0.0608,2184.7,2184.2,0.0592]
[1750620378020,0.24836113,2184.6,2184.1,0.816]
[1750620378220,0.18755911,2184.5,2184.1,0.8752]
[1750620378543,0.05721608,2184.8,2184.1,1.62978462]
[1750620378713,0.18756351,2184.7,2184.1,1.62978462]
[1750620379036,0.18755226,2184.6,2184.2,0.0592]
[1750620379238,14.89057762,2184.7,2184.1,0.816]
[1750620379559,0.30563489,2184.6,2184.1,10.816]
[1750620379863,0.0608,2184.4,2184.0,2.092]
[1750620380009,0.24841199,2184.3,2183.6,6.67149235]
[1750620380213,14.89057762,2184.1,2183.6,2.092]
[1750620380565,0.0608,2183.9,2183.6,10.0]
[1750620380719,0.24828757,2184.0,2183.6,10.0]
[1750620380922,0.24828757,2184.0,2183.3,5.37523876]
[1750620380923,0.0608,2183.8,2183.3,0.7951]
[1750620381126,0.0608,2183.8,2183.2,2.1512]
[1750620381127,0.05724163,2183.8,2183.2,2.092]
[1750620381332,14.95137762,2184.0,2183.4,4.61817074]
[1750620381532,0.18744023,2183.9,2183.4,4.61817074]
[1750620381853,0.24823609,2183.8,2183.3,10.0]
[1750620382030,0.24823609,2183.7,2183.2,16.67239373]
[1750620382349,0.0608,2183.7,2183.2,10.0]
[1750620382528,0.0563,2183.8,2183.2,14.58024734]
[1750620382847,0.0563,2183.8,2183.3,4.61838266]
[1750620383718,0.05724573,2183.9,2183.3,0.03816781]
[1750620383952,0.24339843,2183.8,2183.2,4.58033159]
[1750620384144,0.0563,2183.8,2183.2,4.58033159]
[1750620384448,0.18707537,2183.7,2183.2,4.58033159]
[1750620384650,0.0563,2183.8,2183.1,7.46764959]
[1750620384862,0.6063,2183.6,2182.7,0.2257423]
[1750620385059,14.94687762,2183.3,2182.7,0.2257423]
[1750620385219,22.68387762,2183.3,2182.8,0.0381936]
[1750620385620,0.0563,2183.2,2182.8,0.0381936]
[1750620386281,0.0563,2183.2,2182.7,0.2257423]
[1750620386631,0.05725868,2183.2,2182.7,0.2257423]
[1750620386834,0.0563,2182.9,2182.7,0.2257423]
[1750620387047,0.0563,2182.8,2182.7,0.2257423]
[1750620387229,0.0563,2182.8,2182.7,0.1257423]
[1750620387435,7.738,2182.9,2182.7,0.1257423]
[1750620387771,7.7943,2182.9,2182.7,0.1257423]
[1750620387970,7.85156867,2182.9,2182.7,0.1257423]
[1750620388186,0.11356868,2182.9,2182.7,0.1257423]
[1750620388352,7.79526868,2182.9,2182.7,0.1257423]
[1750620388552,0.0563,2182.8,2182.7,0.1257423]
[1750620389558,0.51081001,2182.8,2182.7,0.1257423]
[1750620389756,0.24238864,2182.8,2182.7,0.1257423]
[1750620389954,0.29966324,2182.8,2182.7,0.1257423]
[1750620390959,0.2996331,2182.8,2182.7,0.1257423]
[1750620391270,0.1135746,2182.8,2182.7,0.1257423]
[1750620391477,10.29926044,2182.8,2182.7,0.1257423]
[1750620391661,11.06835464,2182.8,2182.7,0.1257423]
[1750620391861,10.88269448,2182.8,2182.7,0.1257423]
[1750620392175,11.06833994,2182.8,2182.7,0.1257423]
[1750620392539,11.06827641,2182.8,2182.7,0.1257423]
[1750620394672,1.24027641,2182.8,2182.7,0.1257423]
[1750620394877,0.18558193,2182.8,2182.7,4.70722395]
[1750620395176,8.20574311,2183.4,2182.7,0.9481423]
[1750620395364,7.739,2183.5,2182.9,4.58085731]
[1750620395564,7.739,2183.5,2182.7,0.9481423]
[1750620395565,24.71957762,2183.7,2183.0,5.03887863]
[1750620395868,0.05725166,2183.6,2183.1,0.03817961]
[1750620396073,7.79725166,2183.6,2183.0,0.51668573]
[1750620396371,7.92547996,2183.5,2183.0,0.45808573]
[1750620396570,7.74,2183.5,2183.1,0.0586]
[1750620396802,0.46444314,2183.8,2183.3,0.0586]
[1750620396985,0.18549307,2183.7,2183.4,0.0586]
[1750620397202,10.0,2183.8,2183.4,0.0586]
[1750620397388,0.18564345,2183.7,2183.4,4.6385321]
[1750620397605,9.83,2183.9,2183.3,4.58011912]
[1750620397819,0.18565209,2183.8,2183.4,0.54025191]
[1750620397999,7.74,2183.9,2183.5,0.0586]
[1750620398172,0.18565911,2183.8,2183.5,0.0586]
[1750620398373,17.74,2183.9,2183.5,0.0586]
[1750620398586,0.1856693,2183.8,2183.5,0.0586]
[1750620398795,17.739,2183.9,2183.5,0.0586]
[1750620398994,0.1856616,2183.8,2183.5,0.0586]
[1750620399200,10.0563,2184.2,2183.5,0.0381582]
[1750620399400,10.0563,2184.2,2183.6,0.0586]
[1750620399401,7.739,2184.0,2183.6,0.0586]
[1750620399719,10.0,2183.9,2183.6,0.0586]
[1750620400308,0.05723834,2183.8,2183.2,0.8224]
[1750620400511,0.05724412,2183.9,2183.3,1.597128]
[1750620400674,0.18582191,2183.8,2183.3,1.597128]
[1750620401020,0.05724412,2183.9,2183.3,1.655728]
[1750620401338,17.739,2184.0,2183.3,6.17724243]
[1750620401508,0.24314541,2183.9,2183.4,0.0586]
[1750620401707,0.11353861,2183.9,2183.3,1.597128]
[1750620402038,0.11353861,2183.9,2183.2,5.46142852]
[1750620402340,0.18600433,2183.8,2183.3,4.58022259]
[1750620402522,10.0,2184.0,2183.4,0.0586]
[1750620402835,0.18601793,2183.9,2183.3,0.0586]
[1750620403021,0.18602296,2183.9,2183.3,0.0586]
[1750620403343,0.05723837,2184.0,2183.3,0.65570723]
[1750620403626,14.89057762,2183.8,2183.4,0.0586]
[1750620404300,14.89057762,2184.1,2183.4,0.0586]
[1750620404501,7.98166256,2184.0,2183.4,0.0586]
[1750620404827,0.05724234,2184.0,2183.4,1.17179615]
[1750620405245,7.737,2183.9,2183.4,1.11319615]
[1750620405445,21.24710561,2184.7,2183.4,1.11319615]
[1750620405446,2.09,2184.6,2183.6,0.0586]
[1750620405746,0.24378709,2184.5,2183.9,0.0586]
[1750620405948,0.05722662,2184.5,2183.9,0.0586]
[1750620406311,0.05722662,2184.5,2183.9,4.63754647]
[1750620406505,0.05722662,2184.5,2183.9,0.0586]
[1750620406719,0.11352762,2184.6,2183.9,0.0586]
[1750620407110,0.11352762,2184.6,2183.9,4.63756131]
[1750620407306,0.18674747,2184.5,2184.0,4.61684727]
[1750620407509,0.11352748,2184.6,2184.0,0.03813153]
[1750620407807,0.18674655,2184.5,2184.2,0.7503]
[1750620407999,24.71557762,2184.8,2184.2,5.36674181]
[1750620408199,0.18675254,2184.7,2184.2,0.78842102]
[1750620408553,24.71557762,2184.8,2184.2,0.78842102]
[1750620408699,0.18665599,2184.7,2184.2,5.36672394]
[1750620408899,24.71557762,2184.8,2184.2,5.36672394]
[1750620409115,0.18666143,2184.7,2184.2,5.36672394]
[1750620409311,0.18666143,2184.6,2184.2,5.36672394]
[1750620409515,24.71557762,2184.8,2184.3,4.57799236]
[1750620409799,0.18691746,2184.7,2184.2,0.78842102]
[1750620410013,0.05721974,2184.7,2184.2,0.7503]
[1750620410747,24.71557762,2184.8,2184.2,5.36673677]
[1750620411080,24.71557762,2184.8,2184.2,0.7503]
[1750620411081,0.24414445,2184.7,2184.2,0.7503]
[1750620411256,0.05721967,2184.7,2184.2,0.8089]
[1750620411534,0.0563,2184.6,2184.2,0.7503]
[1750620414827,0.11951967,2184.7,2184.2,0.7503]
[1750620416014,10.0,2185.0,2184.2,0.7503]
[1750620416015,14.95287762,2185.0,2184.3,0.0381262]
[1750620416222,0.0623,2185.3,2184.6,5.34118091]
[1750620416441,10.0,2185.2,2184.6,5.34118091]
[1750620416617,7.734,2185.2,2184.7,5.56912641]
[1750620416949,7.734,2185.2,2184.7,4.5772503]
[1750620417114,7.734,2185.2,2184.6,5.34120263]
[1750620417836,14.89057762,2185.1,2184.3,5.34191413]
[1750620418034,14.89057762,2184.8,2184.3,0.7638]
[1750620418346,0.11951972,2184.7,2184.0,7.43145236]
[1750620418507,0.11951972,2184.7,2184.1,1.11745545]
[1750620418707,0.11951972,2184.7,2184.0,0.7638]
[1750620418912,10.11951972,2184.7,2184.0,7.43149609]
[1750620419241,10.0623,2184.7,2184.0,7.43149609]
[1750620420044,10.0623,2184.7,2184.0,2.8528]
[1750620420236,0.05722499,2184.6,2184.0,7.43153325]
[1750620420440,0.05722499,2184.6,2184.0,9.73276603]
[1750620421033,14.89057762,2184.5,2183.8,11.7658]
[1750620421238,10.0623,2184.7,2184.0,0.0589]
[1750620421239,24.95287762,2184.7,2184.0,0.0589]
[1750620421435,0.0623,2184.5,2183.8,7.43191117]
[1750620421637,0.0623,2184.5,2183.8,7.49081117]
[1750620421857,14.89057762,2184.4,2183.8,2.9117]
[1750620422032,0.05723069,2184.3,2183.8,2.9117]
[1750620422218,10.05723069,2184.3,2183.8,2.8528]
[1750620422418,0.0623,2184.2,2183.6,4.57956844]
[1750620422642,0.05723579,2184.1,2183.6,4.57956844]
[1750620422956,0.05723579,2184.1,2183.7,0.0589]
[1750620423154,0.0623,2184.2,2183.7,0.0589]
[1750620423357,2.086,2184.5,2183.7,0.57837474]
[1750620423358,0.0623,2184.5,2183.7,0.57837474]
[1750620423539,10.0,2184.3,2183.9,0.0589]
[1750620424566,0.0623,2184.5,2183.9,0.0589]
[1750620424745,10.0,2184.3,2183.9,0.0589]
[1750620424931,2.086,2184.6,2184.1,0.0589]
[1750620424932,12.086,2184.6,2184.1,0.0589]
[1750620425126,10.0,2184.4,2184.2,0.0589]
[1750620425373,17.732,2184.6,2184.2,0.0589]
[1750620425677,0.18747306,2184.5,2184.2,0.0589]
[1750620425828,0.18747306,2184.4,2184.2,0.0589]
[1750620426029,17.732,2184.6,2184.2,0.0589]
[1750620426240,0.18743864,2184.5,2184.0,0.7766]
[1750620426473,0.18743864,2184.4,2184.0,5.35526117]
[1750620426673,0.0623,2184.8,2184.0,6.55729677]
[1750620426674,7.78822379,2184.7,2184.0,6.55729677]
[1750620426880,0.1874109,2184.6,2184.0,0.7766]
[1750620427081,0.18736656,2184.5,2184.0,0.7766]
[1750620427397,7.78822379,2184.7,2184.0,0.7766]
[1750620427578,0.18748744,2184.6,2184.0,0.7766]
[1750620427779,0.18748744,2184.5,2184.0,0.81472387]
[1750620427974,0.18747272,2184.4,2184.0,0.7766]
[1750620428175,0.18747272,2184.3,2184.0,0.7766]
[1750620428344,0.1874899,2184.2,2184.0,0.7766]
[1750620428540,0.05722772,2184.5,2184.0,0.7766]
[1750620428778,0.18749586,2184.4,2184.0,0.7766]
[1750620428966,0.18749586,2184.3,2183.9,2.086]
[1750620429165,0.1875374,2184.2,2183.9,2.086]
[1750620429357,0.11952772,2184.5,2183.9,2.086]
[1750620429558,0.18753736,2184.4,2183.9,2.086]
[1750620429853,0.18753736,2184.3,2183.9,4.11744629]
[1750620430050,0.05722772,2184.5,2184.0,0.03813178]
[1750620430251,0.18761949,2184.4,2184.1,0.754]
[1750620430451,0.18762475,2184.3,2184.1,0.754]
[1750620430649,0.05722772,2184.5,2184.1,0.754]
[1750620430890,0.18766662,2184.4,2183.9,7.48495679]
[1750620431068,0.18766662,2184.3,2183.9,7.48495679]
[1750620431301,0.1876962,2184.2,2184.0,0.0589]
[1750620431488,10.0,2184.6,2184.0,0.0589]
[1750620431685,0.18769387,2184.5,2184.2,5.39842326]
[1750620431886,10.0,2184.8,2184.3,0.59874233]
[1750620432092,0.30724736,2184.7,2184.2,0.8201]
[1750620432275,0.18791433,2184.6,2184.2,0.879]
[1750620432610,0.25021433,2184.5,2184.0,0.8201]
[1750620432807,0.0623,2184.5,2184.0,0.879]
[1750620433113,0.18787968,2184.4,2184.0,0.879]
[1750620433416,0.18787968,2184.3,2184.0,1.63341265]
[1750620433717,0.18787968,2184.2,2183.8,0.879]
[1750620434013,0.18787968,2184.1,2183.8,0.879]
[1750620434313,0.18787968,2184.0,2183.8,0.879]
[1750620434513,0.0572338,2184.4,2183.8,0.879]
[1750620434713,0.18790948,2184.3,2183.8,0.879]
[1750620434923,0.18790948,2184.2,2183.8,0.879]
[1750620435110,0.18790948,2184.1,2183.9,0.0589]
[1750620435314,0.18790948,2184.0,2183.9,0.0589]
[1750620435721,0.11952821,2184.6,2183.9,4.67599706]
[1750620435722,0.0623,2184.6,2183.9,4.67599706]
[1750620436016,0.1880979,2184.5,2184.0,4.63748229]
[1750620436212,0.1880979,2184.4,2184.1,0.03812446]
[1750620436392,0.1880979,2184.3,2184.1,0.03812446]
[1750620436586,0.1880979,2184.2,2184.0,0.63041733]
[1750620436778,10.0,2184.7,2184.1,5.33142577]
[1750620437281,0.18811404,2184.6,2184.1,5.33144636]
[1750620437591,0.1881179,2184.5,2184.1,5.33144636]
[1750620437913,10.0,2184.7,2184.1,5.33144636]
[1750620437914,0.1881179,2184.4,2184.1,7.15852128]
[1750620438115,10.0,2184.7,2184.1,7.15852128]
[1750620438410,0.18812311,2184.6,2184.2,4.61641416]
[1750620438613,0.18812311,2184.5,2184.2,0.0381183]
[1750620438819,0.18816259,2184.4,2184.1,7.15852494]
[1750620439019,0.18816259,2184.3,2184.2,1.23676184]
[1750620439521,0.18823865,2184.3,2184.2,1.23676184]
[1750620440019,0.0623,2185.5,2184.7,4.57718772]
[1750620440220,0.18832383,2185.4,2184.8,0.7919]
[1750620440392,0.18832383,2185.3,2184.9,4.57685979]
[1750620440713,0.18835721,2185.2,2185.0,0.03807901]
[1750620440917,0.18835721,2185.1,2185.0,5.40661092]
[1750620441119,0.18835721,2185.1,2185.0,5.36853191]
[1750620441320,7.7913,2185.7,2185.0,5.9642851]
[1750620441483,15.12953099,2186.1,2185.2,4.63503515]
[1750620441484,0.18839347,2185.6,2185.2,4.63503515]
[1750620441686,0.18840465,2185.5,2185.3,0.0589]
[1750620441898,0.18840465,2185.4,2185.3,0.0589]
[1750620442315,0.18796638,2185.4,2185.3,0.0589]
[1750620442521,0.05719218,2186.0,2185.3,1.31430352]
[1750620442711,0.18800452,2185.9,2185.3,0.8508]
[1750620442911,0.18800452,2185.8,2185.6,0.7919]
[1750620443113,10.0582,2186.5,2185.7,0.0619]
[1750620443114,0.0571822,2186.3,2185.7,0.0619]
[1750620443308,0.1879908,2186.2,2185.7,0.03804017]
[1750620443490,0.1879908,2186.1,2185.7,0.03804018]
[1750620443691,0.1879908,2186.0,2185.7,0.0619]
[1750620443889,0.0571822,2186.3,2185.7,0.0619]
[1750620443890,0.1879908,2185.9,2185.7,0.0619]
[1750620444089,0.05718211,2186.4,2185.7,0.0619]
[1750620444318,10.0,2185.9,2185.3,0.7919]
[1750620444504,0.18795894,2185.8,2185.3,0.7919]
[1750620444712,0.18795894,2185.7,2185.3,0.8538]
[1750620444928,10.0,2185.9,2185.3,0.8538]
[1750620445114,0.24513703,2185.8,2185.3,0.8538]
[1750620445316,10.0,2185.9,2185.3,6.18142299]
[1750620445627,0.18763896,2185.8,2185.3,6.11952299]
[1750620445807,10.0,2185.9,2185.3,6.11952299]
[1750620446126,0.0582,2186.4,2185.6,0.0477]
[1750620446359,0.0582,2186.4,2185.5,0.7631]
[1750620446360,10.0582,2186.2,2185.5,0.7631]
[1750620446507,0.0582,2186.0,2185.5,0.7631]
[1750620446708,0.18773701,2185.9,2185.5,0.7631]
[1750620447033,0.0582,2186.0,2185.5,0.7631]
[1750620447232,0.18767084,2185.9,2185.5,0.7631]
[1750620447414,0.0582,2186.0,2185.5,0.7631]
[1750620447614,0.18768277,2185.9,2185.5,0.7631]
[1750620447815,0.0582,2186.0,2185.5,0.7631]
[1750620448215,0.05718667,2186.1,2185.5,0.7631]
[1750620448546,0.24564623,2186.0,2185.5,0.7631]
[1750620448750,0.0582,2186.0,2185.5,0.8108]
[1750620448955,0.05718667,2186.1,2185.5,0.8108]
[1750620449151,0.24564191,2186.0,2185.5,0.8108]
[1750620449450,0.0582,2186.0,2185.5,0.8108]
[1750620450417,0.05718667,2186.1,2185.5,6.0857476]
[1750620450647,0.11538667,2186.1,2185.6,0.0477]
[1750620451254,17.7992,2186.4,2185.6,4.62344307]
[1750620451422,0.24444595,2186.3,2185.6,4.58539357]
[1750620451620,0.18726479,2186.2,2185.7,0.6095654]
[1750620451820,0.18726479,2186.2,2185.7,0.6196654]
[1750620452020,0.05718116,2186.3,2185.7,0.0101]
[1750620452253,0.24549265,2186.2,2185.7,0.0101]
[1750620452421,0.0582,2186.2,2185.7,0.0101]
[1750620453658,0.05718116,2186.3,2185.7,4.5750755]
[1750620453958,0.05718116,2186.3,2185.8,0.03803855]
[1750620454173,0.11538116,2186.3,2185.8,0.04813855]
[1750620454348,10.0,2186.4,2186.0,0.0101]
[1750620454527,10.0582,2186.4,2185.9,0.8327]
[1750620454726,10.0582,2186.4,2185.9,0.8428]
[1750620455257,10.0582,2186.4,2185.9,0.8327]
[1750620455567,0.11537672,2186.3,2185.9,0.8327]
[1750620455722,0.05717672,2186.3,2185.9,0.8327]
[1750620455926,0.0582,2186.1,2185.7,0.7795]
[1750620456426,0.0582,2186.0,2185.7,0.7795]
[1750620456755,10.0,2186.2,2185.7,0.7795]
[1750620457144,17.742,2186.2,2185.8,0.09994341]
[1750620457546,10.0,2186.2,2185.7,0.7795]
[1750620457727,0.0582,2186.0,2185.7,0.7795]
[1750620458623,0.1153799,2186.1,2185.7,0.7795]
[1750620458830,10.0,2186.2,2185.7,0.7795]
[1750620459031,10.0,2186.2,2185.7,0.8414]
[1750620459240,0.05718464,2186.1,2185.7,0.8414]
[1750620459438,10.0582,2186.2,2185.7,0.8414]
[1750620459761,10.0582,2186.2,2185.8,0.03804558]
[1750620460054,0.05718124,2186.1,2185.7,0.8414]
[1750620460223,0.11538124,2186.1,2185.7,0.7795]
[1750620460425,0.0582,2186.1,2185.7,0.7795]
[1750620460626,0.0582,2186.1,2185.7,1.8344461]
[1750620460942,10.0,2186.2,2185.7,1.8344461]
[1750620460943,10.0582,2186.2,2185.7,1.8344461]
[1750620461349,0.05718133,2186.1,2185.7,0.8414]
[1750620461856,10.0,2186.2,2185.7,0.8414]
[1750620462062,10.0582,2186.2,2185.7,0.8414]
[1750620463557,10.0582,2186.2,2185.7,5.41658312]
[1750620463759,10.0582,2186.2,2185.7,0.7795]
[1750620464242,10.0582,2186.2,2185.7,1.31498014]
[1750620464446,10.0582,2186.2,2185.7,0.7795]
[1750620464447,0.0582,2186.1,2185.7,0.7795]
[1750620464953,10.0,2186.2,2185.7,0.7795]
[1750620465155,10.0582,2186.2,2185.7,0.7795]
[1750620465966,10.0,2186.2,2185.7,0.7795]
[1750620466136,0.1879629,2186.1,2185.7,0.7795]
[1750620466337,10.0582,2186.2,2185.8,0.53548981]
[1750620466634,10.0582,2186.2,2185.7,0.8414]
[1750620467541,10.0582,2186.2,2185.8,0.03803904]
[1750620467874,10.0,2186.2,2185.8,0.09993904]
[1750620468049,10.0,2186.2,2185.9,0.7702]
[1750620468364,0.18863155,2186.1,2186.0,0.0619]
[1750620468563,0.18863155,2186.1,2186.0,1.06007108]
[1750620469140,0.18864582,2186.1,2186.0,1.06007108]
[1750620469557,0.18864194,2186.1,2186.0,1.06007108]
[1750620469752,0.18864194,2186.1,2186.0,1.09809719]
[1750620469953,0.18864194,2186.1,2186.0,1.83027108]
[1750620470365,0.18865165,2186.1,2186.0,1.83027108]
[1750620470571,0.18865165,2186.1,2186.0,1.76837108]
[1750620470775,0.18865165,2186.1,2186.0,0.7702]
[1750620470978,0.18864476,2186.1,2186.0,0.7702]
[1750620471476,0.0582,2186.8,2186.0,0.7702]
[1750620471777,7.91265389,2186.7,2186.0,7.44364836]
[1750620471978,0.11536752,2186.8,2186.0,7.44364836]
[1750620471979,0.18865389,2186.6,2186.0,7.44364836]
[1750620472181,0.18865389,2186.5,2186.4,5.3439285]
[1750620472379,0.46251218,2186.9,2186.7,0.7702]
[1750620472543,10.0,2187.1,2186.7,0.7702]
[1750620472745,0.18881289,2187.0,2186.7,5.34328944]
[1750620472959,0.18881289,2186.9,2186.8,5.89780367]
[1750620473161,0.18883765,2186.9,2186.8,5.89780367]
[1750620473484,0.08883765,2186.9,2186.8,5.89780367]
[1750620473656,0.45220767,2187.4,2186.8,5.89780367]
[1750620473857,7.731,2187.5,2186.8,5.89780367]
[1750620473858,7.731,2187.5,2186.8,1.32491178]
[1750620474057,10.0,2187.4,2186.9,0.58979152]
[1750620474449,10.0,2187.4,2186.8,5.36344427]
[1750620474450,17.78415305,2187.3,2186.8,0.7526]
[1750620474657,0.0607,2187.2,2186.8,0.7526]
[1750620474852,0.11785495,2187.2,2186.8,0.7526]
[1750620475789,0.0607,2187.1,2186.8,0.7526]
[1750620476697,0.05715495,2187.2,2186.8,0.7526]
[1750620476880,0.0607,2187.7,2187.2,0.7875]
[1750620477063,7.84384494,2187.8,2187.2,0.7875]
[1750620477264,10.0607,2187.7,2187.2,0.7875]
[1750620477474,0.0607,2187.6,2187.2,0.7875]
[1750620477676,0.0607,2187.6,2187.2,1.53918013]
[1750620478188,10.0607,2187.7,2187.2,1.59808013]
[1750620478594,0.05714256,2187.6,2187.2,1.53918013]
[1750620478749,0.11784267,2187.7,2187.2,0.8464]
[1750620479256,0.11784267,2187.7,2187.3,0.03796164]
[1750620479455,0.05714267,2187.7,2187.3,0.09686164]
[1750620479657,0.23877203,2187.9,2187.6,0.8256]
[1750620479859,0.11783145,2188.1,2187.7,0.53969268]
[1750620480086,0.11783145,2188.1,2187.6,0.8845]
[1750620480294,0.05713145,2188.1,2187.6,0.8256]
[1750620480503,10.0,2187.6,2187.1,0.815]
[1750620480653,0.0607,2187.4,2187.1,0.815]
[1750620481312,0.05714688,2187.5,2187.1,0.815]
[1750620481619,0.0607,2187.4,2187.1,0.815]
[1750620482784,0.0607,2187.5,2187.1,1.1063]
[1750620483010,17.722,2187.6,2187.1,1.1063]
[1750620483165,10.0607,2187.3,2186.9,0.815]
[1750620483358,0.11785474,2187.2,2186.9,0.815]
[1750620483576,0.11785474,2187.2,2186.6,0.815]
[1750620483868,22.61157762,2187.1,2186.6,0.815]
[1750620484075,0.0607,2186.9,2186.4,0.815]
[1750620484267,0.1178645,2186.8,2186.4,0.815]
[1750620485003,0.0607,2186.8,2186.4,0.815]
[1750620485500,10.0,2187.0,2186.4,0.815]
[1750620485501,7.723,2187.0,2186.5,0.03800726]
[1750620485662,7.7837,2187.0,2186.5,0.5806709]
[1750620486620,0.0607,2187.2,2186.5,0.6395709]
[1750620486830,0.15151099,2187.1,2186.5,0.6395709]
[1750620486987,0.11785973,2187.2,2186.5,0.09690726]
[1750620487181,0.15150801,2187.1,2186.5,0.09690726]
[1750620487387,0.11785973,2187.2,2186.5,0.09690726]
[1750620487812,0.0607,2187.0,2186.4,0.815]
[1750620488022,0.0607,2187.0,2186.4,2.897]
[1750620488298,0.0607,2187.0,2186.4,3.64996765]
[1750620488499,10.0607,2187.0,2186.4,3.64996765]
[1750620488697,0.0607,2186.8,2186.4,2.897]
[1750620488895,0.05716182,2186.9,2186.4,2.897]
[1750620489099,0.05716182,2186.9,2186.4,0.815]
[1750620489297,0.0607,2186.8,2186.4,0.815]
[1750620489502,0.05716182,2186.9,2186.4,0.815]
[1750620489923,0.0607,2186.8,2186.4,0.815]
[1750620490121,0.05716182,2186.9,2186.4,0.815]
[1750620490333,0.0607,2186.6,2186.2,0.8093]
[1750620490620,10.0607,2186.7,2186.2,0.8682]
[1750620490789,0.0607,2186.6,2186.2,0.8093]
[1750620490987,0.05716864,2186.6,2186.2,0.8093]
[1750620491191,0.0607,2186.5,2186.2,0.8093]
[1750620491419,0.05716864,2186.6,2186.2,2.20312]
[1750620491610,0.0607,2186.5,2186.2,2.20312]
[1750620492014,0.0607,2186.6,2186.2,2.20312]
[1750620492931,0.11786865,2186.6,2186.2,2.20312]
[1750620493146,0.0607,2186.5,2186.2,0.8093]
[1750620494852,0.05716865,2186.6,2186.2,0.8093]
[1750620495139,0.0607,2186.5,2186.2,0.8093]
[1750620495356,0.05716865,2186.6,2186.0,13.8651]
[1750620496001,0.15168158,2186.5,2186.0,0.7941]
[1750620496203,0.0607,2186.3,2185.8,0.8236]
[1750620496402,0.0607,2186.3,2185.9,0.29066]
[1750620497639,0.11787914,2186.3,2185.9,0.29066]
[1750620497824,0.05717914,2186.3,2185.9,0.29066]
[1750620498029,10.0,2186.5,2186.2,0.0589]
[1750620498332,10.0,2186.5,2186.1,0.8236]
[1750620498540,7.722,2186.6,2186.1,0.8825]
[1750620498725,10.2090275,2186.5,2186.1,0.8825]
[1750620499037,0.8,2186.4,2186.1,0.8825]
[1750620499335,0.8,2186.4,2186.3,5.4564377]
[1750620499536,0.29950162,2187.1,2186.5,0.8236]
[1750620499537,7.722,2187.0,2186.5,0.8236]
[1750620499842,10.0,2186.9,2186.5,0.92050016]
[1750620500133,10.0,2186.9,2186.6,0.0589]
[1750620500339,0.23880162,2187.1,2186.6,4.5733037]
[1750620500524,0.1519729,2187.0,2186.7,0.09689257]
[1750620500841,7.95980162,2187.1,2186.7,0.0589]
[1750620501035,0.15198695,2187.0,2186.7,0.0589]
[1750620501336,10.0,2187.0,2186.7,0.0589]
[1750620501918,10.23880162,2187.1,2186.8,0.80949355]
[1750620502113,0.15210008,2187.0,2186.8,0.7715]
[1750620502417,10.23880162,2187.1,2186.8,1.4060583]
[1750620502614,0.0607,2187.5,2186.8,1.4060583]
[1750620502818,0.15211972,2187.4,2187.2,5.34335004]
[1750620503022,0.23871227,2187.8,2187.3,4.60969752]
[1750620503232,0.15220527,2187.7,2187.5,4.57141869]
[1750620503412,0.23871227,2187.8,2187.7,0.7715]
[1750620503605,0.39095739,2187.8,2187.7,0.7715]
[1750620504027,0.23871227,2187.8,2187.7,0.7715]
[1750620505444,0.29951227,2187.8,2187.5,0.7943]
[1750620506246,0.05713759,2187.7,2187.3,0.7931]
[1750620506455,0.0608,2187.5,2187.0,0.7931]
[1750620506654,0.0608,2187.5,2187.1,0.03797558]
[1750620506831,10.0,2187.6,2187.1,0.03797558]
[1750620507031,0.05714755,2187.5,2187.0,0.8555]
[1750620507234,0.11794755,2187.5,2187.0,1.60757996]
[1750620507434,0.11794755,2187.5,2187.0,0.7931]
[1750620507957,10.0,2187.6,2187.1,0.1003714]
[1750620508158,14.89057762,2187.4,2187.0,0.7931]
[1750620508365,0.0608,2187.3,2187.0,0.7931]
[1750620508568,0.0608,2187.6,2187.0,0.7931]
[1750620508885,0.23871227,2187.8,2187.3,4.57181767]
[1750620509180,0.23871227,2187.8,2187.4,2.18234818]
[1750620509329,0.23871227,2187.8,2187.4,2.1444]
[1750620509528,0.35664936,2187.8,2187.4,2.082]